Cogmind - Beta 14 @@@ ROGUE MODE // 2024.08.21 @ 10:34:42 Player: Luca Result: Destroyed by as-08197 with Assembled Rifle Performance ------------- Evolutions (0) 0 Regions Visited (4) 800 Robots Destroyed (1) 5 Value Destroyed (47) 47 Prototype IDs (0) 0 Alien Tech Used (0) 0 Bonus (0) 0 TOTAL SCORE: 852 Bonus ------- None Cogmind --------- Core Integrity 0/250 Matter 295/300 Energy 95/100 System Corruption 0% Temperature Cool (1) Movement Walking (120) Location -9/Mines Parts ------- > --- POWER (1) -------- (None) > --- PROPULSION (2) --- Aluminum Leg > --- UTILITY (2) ------ Small Storage Unit > --- WEAPON (2) ------- (None) > --- INVENTORY (8) ---- Small Laser Peak State ------------ > --- POWER ------------ Light Ion Engine > --- PROPULSION ------- Aluminum Leg Aluminum Leg > --- UTILITY ---------- Small Storage Unit > --- WEAPON ----------- EM Pulse Gun Assault Rifle > --- INVENTORY -------- (None) [Rating: 6] Favorites ----------- Power Light Ion Engine Engine Light Ion Engine Propulsion Aluminum Leg Leg Aluminum Leg Utility Small Storage Unit Storage Small Storage Unit Weapon Assault Rifle Energy Gun EM Pulse Gun Ballistic Gun Assault Rifle Special Melee Weapon Datajack Build | -11 -10 -10 -10 -9 ------- Run | Yrd Mat Min Exi Min Slots Evolved . | . . . . . Power . | . . . . . Propulsion . | . . . . . Utility . | . . . . . Weapon . | . . . . . Parts Attached 9 | 6 2 . . 1 Power 2 | 1 1 . . . Engine 2 | 1 1 . . . Core . | . . . . . Reactor . | . . . . . Propulsion 3 | 2 . . . 1 Treads . | . . . . . Leg 3 | 2 . . . 1 Wheel . | . . . . . Hover . | . . . . . Flight . | . . . . . Utility 1 | 1 . . . . Device . | . . . . . Storage 1 | 1 . . . . Processor . | . . . . . Hackware . | . . . . . Protection . | . . . . . Artifact . | . . . . . Weapon 3 | 2 1 . . . Energy Gun 1 | 1 . . . . Energy Cannon . | . . . . . Ballistic Gun 1 | 1 . . . . Ballistic Cannon . | . . . . . Launcher . | . . . . . Special Weapon . | . . . . . Impact Weapon . | . . . . . Slashing Weapon . | . . . . . Piercing Weapon . | . . . . . Special Melee Weapon 1 | . 1 . . . Unidentified Prototypes . | . . . . . Parts Lost 7 | . 2 . . 5 Power 2 | . 1 . . 1 Propulsion 2 | . . . . 2 Utility . | . . . . . Weapon 3 | . 1 . . 2 Highest Loss Streak 4 | . 1 . . 4 To Critical Strikes 2 | . 1 . . 1 Average Slot Usage (%) 79 | . 83 85 85 41 Engine 12 | . 13 14 14 3 Leg 26 | . 28 28 28 17 Storage 14 | . 14 14 14 14 Energy Gun 3 | . 10 . . . Ballistic Gun 12 | . 14 14 14 2 Special Melee Weapon 9 | . 2 14 14 3 Peak Build Rating 6 | 6 6 6 6 6 Average Rating 5 | 5 5 6 6 3 On Entrance 4 | . 6 6 6 6 Naked Turns . | . . . . . Heaviest Build 12 | 12 12 11 11 11 Greatest Support 20 | 20 20 20 20 20 Greatest Overweight (x) . | . . . . . Average Overweight (x) . | . . . . . Largest Inventory Capacity 8 | 8 8 8 8 8 Average Capacity 7 | 7 8 8 8 8 Most Carried 3 | 3 1 . . 1 Average Carried . | . . . . . Final Capacity 8 | 8 8 8 8 8 Final Carried 1 | . . . . 1 Class Distribution -------------------- 100% | Mutant Dominant Class ---------------- Mutant | -10/Materials Mutant | -10/Mines Mutant | -10/Exiles Mutant | -9/Mines Resources | -11 -10 -10 -10 -9 ----------- Run | Yrd Mat Min Exi Min Matter Collected 317 | 171 126 . . 20 Remotely . | . . . . . Salvage Created 60 | . 60 . . . Parts 1 | . 1 . . . Haulers Intercepted . | . . . . . Recyclers Shooed . | . . . . . Parts Field Recycled . | . . . . . Retrieved Matter . | . . . . . Parts Self-Destructed . | . . . . . Prevented . | . . . . . Kills | -11 -10 -10 -10 -9 ------- Run | Yrd Mat Min Exi Min Combat Hostiles Destroyed 1 | . 1 . . . Classes Destroyed 1 | . 1 . . . Grunt 1 | . 1 . . . Best Kill Streak 1 | . 1 . . . Combat Bots Only 1 | . 1 . . . Max Kills in Single Turn 1 | . 1 . . . Gunslinging . | . . . . . Exploded . | . . . . . Melee . | . . . . . Uniques/NPCs Destroyed . | . . . . . Combat | -11 -10 -10 -10 -9 -------- Run | Yrd Mat Min Exi Min Hostile Shots Fired 67 | . 15 . . 52 Missed 16 | . 2 . . 14 Damage Taken 741 | . 211 . . 530 Core 259 | . 25 . . 234 Absorbed by Shields . | . . . . . Core Remaining (%) 100 | 100 . . . . Volleys Fired 24 | . 16 . . 8 Largest 2 | . 2 . . 1 Hottest 60 | . 60 . . 20 Shots Fired 39 | . 31 . . 8 Gun 39 | . 31 . . 8 Cannon . | . . . . . Launcher . | . . . . . Special . | . . . . . Kinetic 24 | . 16 . . 8 Thermal . | . . . . . Explosive . | . . . . . Electromagnetic 15 | . 15 . . . Robot Hit Streak 7 | . 6 . . 7 Robot Miss Streak 5 | . 4 . . 5 Penetration Max . | . . . . . Secondary Targets . | . . . . . Shots Hit Robots 30 | . 20 . . 10 Core Hits 3 | . 1 . . 2 Critical Kills . | . . . . . Critical Parts Destroyed . | . . . . . Critical Strikes 1 | . 1 . . . Corrupt 1 | . 1 . . . Melee Attacks 4 | . 1 . . 3 Impact . | . . . . . Slashing . | . . . . . Piercing . | . . . . . Sneak Attacks 1 | . 1 . . . Combat Hostiles . | . . . . . Follow-up Attacks . | . . . . . Damage Inflicted 340 | . 250 . . 90 Guns 338 | . 250 . . 88 Cannons . | . . . . . Explosions . | . . . . . Melee . | . . . . . Ramming 2 | . . . . 2 Kinetic 232 | . 144 . . 88 Thermal . | . . . . . Explosive . | . . . . . Electromagnetic 106 | . 106 . . . Impact . | . . . . . Slashing . | . . . . . Piercing . | . . . . . Highest Corruption . | . . . . . Average Corruption . | . . . . . Corruption Purged . | . . . . . Corruption Blocked . | . . . . . Overload Shots . | . . . . . Overflow Damage . | . . . . . Projectiles . | . . . . . Explosions . | . . . . . Melee . | . . . . . Knockbacks . | . . . . . Impact . | . . . . . Kinetic . | . . . . . Secondary . | . . . . . Self-Inflicted Damage . | . . . . . Shots . | . . . . . Rammed . | . . . . . Targets Rammed 1 | . . . . 1 Kicked 1 | . . . . 1 Crushed . | . . . . . Highest Temperature 49 | . 49 . . 5 Average Temperature 20 | . 23 . . 4 Received Heat Transfer 384 | . 132 . . 252 Siege Activations . | . . . . . Robots Corrupted 1 | . 1 . . . Combat Hostiles 1 | . 1 . . . Parts Fried 2 | . 2 . . . Impact Corruptions . | . . . . . Robots Melted . | . . . . . Combat Hostiles . | . . . . . Parts Melted . | . . . . . Heat Transferred . | . . . . . Parts Sabotaged . | . . . . . Parts Stolen . | . . . . . Parts Stripped . | . . . . . Power Chain Reactions . | . . . . . Alert | -11 -10 -10 -10 -9 ------- Run | Yrd Mat Min Exi Min Peak Influence 35 | . 35 9 . . Initial 9 | . . 9 . . Average 7 | . 23 9 . . Maximum Alert Level . | . . . . . Low Security (%) 100 | 100 100 100 . 100 Level 1 . | . . . . . Level 2 . | . . . . . Level 3 . | . . . . . Level 4 . | . . . . . Level 5 . | . . . . . High Security . | . . . . . Max Security . | . . . . . Squads Dispatched . | . . . . . Investigation . | . . . . . Extermination . | . . . . . Reinforcement . | . . . . . Assault . | . . . . . Garrison . | . . . . . Intercept . | . . . . . Searches Triggered . | . . . . . Construction Impeded . | . . . . . Haulers Reinforced . | . . . . . Active Scanning Responses . | . . . . . Cargo Convoy Interrupts . | . . . . . Stealth | -11 -10 -10 -10 -9 --------- Run | Yrd Mat Min Exi Min Distress Signals 5 | . 3 . . 2 Communications Jammed . | . . . . . Distress Signals . | . . . . . Times Spotted 18 | . 5 . . 13 Peak Tracking Total 7 | . 4 . . 7 Tactical Retreats 1 | . . . . 1 Traps | -11 -10 -10 -10 -9 ------- Run | Yrd Mat Min Exi Min Traps Triggered . | . . . . . Indirectly . | . . . . . Trap Hack Attempts 12 | . 12 . . . Triggered . | . . . . . Disarmed 1 | . 1 . . . Reprogrammed . | . . . . . Reused . | . . . . . Traps Extracted . | . . . . . Installed . | . . . . . Triggered . | . . . . . Machines | -11 -10 -10 -10 -9 ---------- Run | Yrd Mat Min Exi Min Machines Disabled . | . . . . . Max in Single Turn . | . . . . . Machines Repaired . | . . . . . Machines Dismantled . | . . . . . Machines Sabotaged . | . . . . . Overloaded Fab Kills . | . . . . . Hacking | -11 -10 -10 -10 -9 --------- Run | Yrd Mat Min Exi Min Machines Accessed 1 | . . . 1 . Terminals . | . . . . . Fabricators . | . . . . . Repair Stations . | . . . . . Recycling Units . | . . . . . Scanalyzers . | . . . . . Garrison Access . | . . . . . Total Hacks 23 | . . . 23 . Successful 23 | . . . 23 . Failed . | . . . . . Catastrophic . | . . . . . Database Lockouts . | . . . . . Manual . | . . . . . Terminals . | . . . . . Fabricators . | . . . . . Repair Stations . | . . . . . Recycling Units . | . . . . . Scanalyzers . | . . . . . Garrison Access . | . . . . . Terminal Hacks 23 | . . . 23 . Record 23 | . . . 23 . Fabricator Hacks . | . . . . . Repair Station Hacks . | . . . . . Recycling Unit Hacks . | . . . . . Scanalyzer . | . . . . . Garrison Access Hacks . | . . . . . Unauthorized Hacks . | . . . . . Terminals . | . . . . . Fabricators . | . . . . . Repair Stations . | . . . . . Recycling Units . | . . . . . Scanalyzers . | . . . . . Garrison Access . | . . . . . Data Cores Recovered 1 | . 1 . . . Used . | . . . . . Hacking Detections . | . . . . . Full Trace Events . | . . . . . Feedback Events . | . . . . . Feedback Blocked . | . . . . . Robot Schematics Acquired . | . . . . . Robots Built . | . . . . . Authchips . | . . . . . Time . | . . . . . Total Robot Build Rating . | . . . . . Part Schematics Acquired . | . . . . . Parts Built . | . . . . . Authchips . | . . . . . Time . | . . . . . Total Part Build Rating . | . . . . . Parts Repaired . | . . . . . Time . | . . . . . Parts Recycled . | . . . . . Recycled Matter . | . . . . . Retrieved Matter . | . . . . . Retrieved Components . | . . . . . Parts Scanalyzed . | . . . . . Part Schematics Acquired . | . . . . . Parts Damaged . | . . . . . Bothacking | -11 -10 -10 -10 -9 ------------ Run | Yrd Mat Min Exi Min Used RIF Installer . | . . . . . Robots Hacked 1 | . . . . 1 Non-combat . | . . . . . Combat 1 | . . . . 1 Robot Hacks Applied 1 | . . . . 1 parse_system 1 | . . . . 1 Relay Couplers Released . | . . . . . Fabnet Peak Effective % . | . . . . . Robots Rewired . | . . . . . Allies Hacked . | . . . . . Hacks Repelled . | . . . . . Allies | -11 -10 -10 -10 -9 -------- Run | Yrd Mat Min Exi Min Total Allies . | . . . . . Largest Group . | . . . . . Highest-Rated Group . | . . . . . Highest-Rated Ally . | . . . . . Total Orders . | . . . . . Ally Attacks . | . . . . . Total Damage . | . . . . . Kills . | . . . . . Allies Corrupted . | . . . . . Allies Melted . | . . . . . Intel | -11 -10 -10 -10 -9 ------- Run | Yrd Mat Min Exi Min Robot Analysis Total . | . . . . . Derelict Logs Recovered 1 | . . 1 . . Drone Launches . | . . . . . Drone Recoveries . | . . . . . Exploration | -11 -10 -10 -10 -9 ------------- Run | Yrd Mat Min Exi Min Turns Passed 1419 | 466 284 52 497 120 Spaces Moved 720 | 42 152 38 415 73 Core 4 | 4 . . . . Treads . | . . . . . Legs 716 | 38 152 38 415 73 Wheels . | . . . . . Hover . | . . . . . Flight . | . . . . . Fastest Speed 50 | 50 120 120 120 120 Average Speed 119 | 113 120 120 120 120 Slowest Speed 120 | 120 120 120 120 120 Overloaded Moves . | . . . . . Propulsion Burnouts . | . . . . . Robots Hopped . | . . . . . Cave-ins Triggered . | . . . . . Exploration Rate (%) 30 | 4 30 15 79 23 Regions Visited 4 Branch Regions 3 Pre-discovered Areas 1 | . . . 1 . Known Exits Taken . | . . . . . Unknown Exits Taken 4 | 1 1 1 1 . Scrap Searched 1 | . . . . 1 Spaces Dug . | . . . . . Terrain Destroyed . | . . . . . Melee . | . . . . . Projectile . | . . . . . AOE . | . . . . . Terrain Rammed . | . . . . . Walls Destroyed . | . . . . . Machines Disabled . | . . . . . Actions | -11 -10 -10 -10 -9 --------- Run | Yrd Mat Min Exi Min Total 1235 | 460 221 44 414 96 Wait 460 | 407 38 7 . 8 Move 716 | 41 151 37 414 73 Hop . | . . . . . Pick Up 9 | 6 1 . . 2 Fast Attach 1 | . 1 . . . Attach 8 | 6 1 . . 1 Detach . | . . . . . Swap . | . . . . . Drop . | . . . . . Fire 24 | . 16 . . 8 Melee 4 | . 1 . . 3 Ram . | . . . . . Kick 1 | . . . . 1 Crush . | . . . . . Escape Stasis . | . . . . . Rewire . | . . . . . Trap 12 | . 12 . . . Miscellaneous . | . . . . . Route ------- -11/Scrapyard -10/Materials -10/Mines -10/Exiles (discovered 2 exits: [*Min x2]) -9/Mines History --------- Turn | Location | Event 8 | -11/Scrapyard | Discovered new exit (range 15) 467 | -11/Scrapyard | Entered Materials 468 | -10/Materials | Build established: Mutant 575 | -10/Materials | Met 8R-AWN 731 | -10/Materials | Discovered new exit (range 16) 751 | -10/Materials | Entered Mines 752 | -10/Mines | Followed 8R-AWN into the Mines 787 | -10/Mines | Learned Materials garrison access intel 798 | -10/Mines | Discovered new exit (range 5) 803 | -10/Mines | Entered Exiles 823 | -10/Exiles | Discovered new exit (range 14) 843 | -10/Exiles | Welcomed by 8R-AWN 868 | -10/Exiles | Met EX-HEX 940 | -10/Exiles | Met EX-DEC 967 | -10/Exiles | Learned location of Zion (-7) 1018 | -10/Exiles | Discovered new exit (range 14) 1096 | -10/Exiles | Visited The Gauntlet 1300 | -10/Exiles | Entered Mines 1338 | -9/Mines | Core integrity fell below 50% 1368 | -9/Mines | Lost 4 parts (1p1n2w) 1368 | -9/Mines | Core integrity fell below 20% 1372 | -9/Mines | Assembled infested the area 1377 | -9/Mines | Assisted by a Guerilla fighting off Assembled 1420 | -9/Mines | Destroyed by as-08197 with Assembled Rifle Last Messages --------------- from, and they're closing on this area, come on!" T-07 Excavator is excavating. HV Slug penetrates G-47 Trooper. G-47 Trooper knocked back. HV Slug penetrates G-47 Trooper. T-07 Excavator is excavating. U-05 Engineer destroyed. as-37301 destroyed. as-72306 destroyed. as-02802 destroyed. as-32789 destroyed. D-53 Grenadier destroyed. The unstable cave ceiling collapses. as-33605 destroyed. Acquired Aluminum Leg. D-53 Grenadier destroyed. Acquired Sml. Laser. Critical hit (Destroy). Aluminum Leg destroyed. The unstable cave ceiling collapses. Map ----- +----------------------------------------------------+ | | | | | | | | | | | | | | | | | | | | | | | | | | | | | | | ??????????????????????????????????????#??????????? | | ????????????????????????????????????# ######?????? | | ?????????????????????????????????### # ##????? | | ????????????????????####????##### #####? | | ????????????????????# ##??## ## ## | | ???????????????????## ##?# # | | ??????????????????## ### # # | | ?????????????????## ### ## | | ???????????####### ###?## ##? | | ???????????# % % = #??### #?? | | ???????????# ### ### @ %%=! ##??# #?? | | ???????????????# #?## %%] # #### ### | | ???????????????# #??# % * % | | ???????????????# #??# a | | ???????????????# #?# ##### ###### | | ???????????????# #?# ##??# #?????# | | ???????????????# #?# #???# ## #### #?????? | | ???????????????# #?## ##???## ##?##??# #?????? | | ???????????????# #??####?????## ##??????# #?????? | | ???????????????# ##???????????####???????# #?????? | | ??????????????## ##??############???????# #?????? | | ?????????????## ##?# #???????# ?????? | | ?????????????# ### """" ????????###?????? | | ?????????????# """" #???????????????? | | ?????????????# ## """" #???????????????? | | ?????????????# ## #???????????????? | | ?????????????## $ ## #???????????????? | | ??????????????# ### #???????????????? | | ??????????????# ####?# #???????????????? | | ????????????? ?????############???????????????? | | ???????????? ????????????????????????????????? | | ???????????## ????????????????????????????????? | | ????????????# ###????????????????????????????????? | | ????????????# ???????????????????????????????????? | | ????????????#????????????????????????????????????? | +----------------------------------------------------+ Best States ------------- Heat Dissipation 25 Energy Generation 10 Energy Capacity 125 Matter Stores 300 Matter Capacity 300 Sight Range 16 Terrain Scan Density 10 Evasion (%) 55 Item Schematics ----------------- None Robot Schematics ------------------ None Fabricated ------------ Nothing Alien Tech Used ----------------- None Achievements -------------- Librarian Power Corrupts Tourist Challenges ------------ None Game ------ Seed PitchforkGhostLattice Manual? 0 Play Time 00:16:58 Cumulative 2.5 hours Start 2024.08.20 @ 23:03:37 End 2024.08.21 @ 10:34:42 Sessions 3 Manual Loads 0 Difficulty Rogue Special Mode None Game No. 5 Rogue 1 Adventurer 4 Explorer 0 Win Type - Total 0 Types 0/0/0/0/0/0/0/0/0 Lore% 3 Gallery% 6 Achievement% 7 Wizard Run 0 Options --------- Layout 0 ASCII 0 Keyboard 0 Movement Mouse Keybinds 0 Fullscreen 2 Font 24/Smallcaps Map View 76x50 Zoom Use 0% Tactical HUD 0 Map Filters NONE Filters NONE Steam 1 RUN: a2206a1e-3d53-432e-8ba0-542a2c5ee0c9